Workbook

Sheet SolCotizacion
A1: Solicitud de cotización - IAD Video-vigilancia ciudadana
A3: Versión: 2 | B3: 2018-01-15
A4: Información de la Entidad Compradora
A6: Nombre de la Entidad: | J6: NIT:
A8: Dirección de la Entidad: | J8: Correo de contacto:
A10: Municipio: | J10: Teléfono de contacto:
A12: Fecha Creación del evento: | E12: Fecha Estimada de Expedición de la Orden de Compra | G12: Fecha Estimada de finalización de orden de compra | J12: Nombre funcionario Comprador:
A14: Solicitud de Cotización
B16: Filas a agregar o eliminar:
G17: Valor presupuesto
B18: 1
A20: Item | B20: Nombre Producto | J20: Cantidad Estimada | K20: Unidad de medida | N20: Número de parte
A21: 1 | N21: N/A
A27: Fin de solicitud

Sheet ResumenCotizacion
A1: Resumen de Cotización - IAD Video-vigilancia ciudadana | Q1: 0.01 | R1: 0
A4: Información de la Entidad Compradora
A6: Nombre de la Entidad: | C6: =IF(SolCotizacion!C6="","",SolCotizacion!C6) ->  | J6: NIT: | K6: =IF(SolCotizacion!K6="","",SolCotizacion!K6) -> 
A8: Dirección de la Entidad: | C8: =IF(SolCotizacion!C8="","",SolCotizacion!C8) ->  | J8: Correo de contacto: | K8: =IF(SolCotizacion!K8="","",SolCotizacion!K8) -> 
A10: Municipio: | C10: =IF(SolCotizacion!C10="","",SolCotizacion!C10) ->  | J10: Teléfono de contacto: | K10: =IF(SolCotizacion!K10="","",SolCotizacion!K10) ->  | M10: =IF(SolCotizacion!M10="","",SolCotizacion!M10) -> 
A12: Fecha de inicio de la Orden de Compra: | C12: =IF(SolCotizacion!C12="","",SolCotizacion!C12) ->  | J12: Nombre funcionario Comprador: | L12: =IF(SolCotizacion!L12="","",SolCotizacion!L12) -> 
A14: Solicitud de Cotización
A22: Item | B22: Nombre Producto | I22: Unidad de Medida | J22: Cantidad Estimada | K22: Número de parte | L22: Valor incluido IVA, gravámenes y demás impuestos aplicables | M22: Valor Unitario * Und Cantidad | N22: Total | O22: IVA | P22: Cantidad de servicio | Q22: Excento de IVA
A23: 1 | N23: =J23*L23 -> 0 | O23: =IF(Q23="NO",N23*0.19,0) -> 0 | P23: 10 | Q23: SI
A25: Fin de solicitud | K25: Totales
K26: Total Productos y Servicios: | L26: Valor total de la cotización: | M26: =SUM(N23:N23) -> 0

Sheet Cotizacion
A1: Resumen de Cotización - IAD Video-vigilancia ciudadana | Q1: 0.01 | R1: 0 | S1: 0
A4: Información de la Entidad Compradora
A6: Nombre de la Entidad: | C6: =IF(ResumenCotizacion!C6="","",ResumenCotizacion!C6) ->  | J6: NIT: | K6: =IF(ResumenCotizacion!K6="","",ResumenCotizacion!K6) -> 
A8: Dirección de la Entidad: | C8: =IF(ResumenCotizacion!C8="","",ResumenCotizacion!C8) ->  | J8: Correo de contacto: | K8: =IF(ResumenCotizacion!K8="","",ResumenCotizacion!K8) -> 
A10: Municipio: | C10: =IF(ResumenCotizacion!C10="","",ResumenCotizacion!C10) ->  | J10: Teléfono de contacto: | K10: =IF(ResumenCotizacion!K10="","",ResumenCotizacion!K10) ->  | M10: =IF(ResumenCotizacion!M10="","",ResumenCotizacion!M10) -> 
A12: Fecha de inicio de la Orden de Compra: | C12: =IF(ResumenCotizacion!C12="","",ResumenCotizacion!C12) ->  | J12: Nombre funcionario Comprador: | L12: =IF(ResumenCotizacion!L12="","",ResumenCotizacion!L12) -> 
A14: Solicitud de Cotización
B18: Proveedor: | K18: =IF(SolCotizacion!K18="","",SolCotizacion!K18) -> 
A22: Item | B22: Nombre Producto | E22: Detalle | I22: Unidad de Medida | J22: Cantidad Estimada | K22: Número de parte | L22: Valor incluido IVA, gravámenes y demás impuestos aplicables | M22: Valor Unitario * Und Cantidad | N22: Descuento | O22: Total | P22: IVA | Q22: Cantidad de servicio | R22: Excento de IVA
A23: 1 | O23: =J23*L23-(L23*N23%*J23) -> 0 | P23: =IF(R23="NO",O23*0.19,0) -> 0 | Q23: 10 | R23: SI
A25: Fin de solicitud | K25: Totales | L25: Totales
K26: Valor total de la cotización: | L26: Valor total de la cotización: | M26: =SUM($O$23:$O23) -> 0
M27: =SUM(P23:P23) -> 0

Sheet Cotizacion (3) (hidden)
A1: Resumen de Cotización - IAD Video-vigilancia ciudadana | Q1: 0.01 | R1: 0 | S1: 0
A4: Información de la Entidad Compradora
A6: Nombre de la Entidad: | C6: =IF(ResumenCotizacion!C6="","",ResumenCotizacion!C6) ->  | J6: NIT: | K6: =IF(ResumenCotizacion!K6="","",ResumenCotizacion!K6) -> 
A8: Dirección de la Entidad: | C8: =IF(ResumenCotizacion!C8="","",ResumenCotizacion!C8) ->  | J8: Correo de contacto: | K8: =IF(ResumenCotizacion!K8="","",ResumenCotizacion!K8) -> 
A10: Municipio: | C10: =IF(ResumenCotizacion!C10="","",ResumenCotizacion!C10) ->  | J10: Teléfono de contacto: | K10: =IF(ResumenCotizacion!K10="","",ResumenCotizacion!K10) ->  | M10: =IF(ResumenCotizacion!M10="","",ResumenCotizacion!M10) -> 
A12: Fecha de inicio de la Orden de Compra: | C12: =IF(ResumenCotizacion!C12="","",ResumenCotizacion!C12) ->  | J12: Nombre funcionario Comprador: | L12: =IF(ResumenCotizacion!L12="","",ResumenCotizacion!L12) -> 
A14: Solicitud de Cotización
B18: Proveedor: | C18: UNIÓN TEMPORAL VIGILANCIA EFICIENTE 2017 | K18: =IF(SolCotizacion!K18="","",SolCotizacion!K18) -> 
A22: Item | B22: Nombre Producto | I22: Unidad de Medida | J22: Cantidad Estimada | K22: Número de parte | L22: Valor Unitario (Incluye gravámenes adicionales) | M22: Valor Unitario * Und Cantidad | N22: Descuento | O22: Total | P22: IVA | Q22: Cantidad de servicio | R22: Excento de IVA
A23: 1 | B23: Tipo 1: Sistema de punto de cámara PTZ sin Infrarrojo y sin poste. | I23: Und | J23: 10 | K23: N/A | L23: 29549242 | M23: 295492420 | O23: =J23*L23-(L23*N23%*J23) -> 295492420 | P23: =IF(R23="NO",O23*0.19,0) -> 0 | Q23: 10 | R23: SI
A24: 2 | B24: Tipo 2: Sistema de punto de cámara PTZ sin infrarrojo y con poste. | I24: Und | J24: 10 | K24: N/A | L24: 33197036 | M24: 331970360 | O24: =J24*L24-(L24*N24%*J24) -> 331970360 | P24: =IF(R24="NO",O24*0.19,0) -> 0 | Q24: 10 | R24: SI
A25: 3 | B25: Tipo 3: Sistema de punto de cámara fija y con poste. | I25: Und | J25: 10 | K25: N/A | L25: 35938329 | M25: 359383290 | O25: =J25*L25-(L25*N25%*J25) -> 359383290 | P25: =IF(R25="NO",O25*0.19,0) -> 0 | Q25: 10 | R25: SI
A26: 4 | B26: Opción 1: Equipo inalambrico 1. | I26: Und | J26: 10 | K26: N/A | L26: 41634284 | M26: 416342840 | O26: =J26*L26-(L26*N26%*J26) -> 416342840 | P26: =IF(R26="NO",O26*0.19,0) -> 0 | Q26: 10 | R26: SI
A27: 5 | B27: Opción 2: Equipo inalambrico 2. | I27: Und | J27: 10 | K27: N/A | L27: 18228206 | M27: 182282060 | O27: =J27*L27-(L27*N27%*J27) -> 182282060 | P27: =IF(R27="NO",O27*0.19,0) -> 0 | Q27: 10 | R27: SI
A29: Fin de solicitud | K29: Totales | L29: Totales
K30: Valor total de la cotización: | L30: Valor total de la cotización: | M30: =SUM(O23:O27) -> 1585470970

Sheet Cotizacion (2) (hidden)
A1: Resumen de Cotización - IAD Video-vigilancia ciudadana | Q1: 0.01 | R1: 0 | S1: 0
A4: Información de la Entidad Compradora
A6: Nombre de la Entidad: | C6: =IF(ResumenCotizacion!C6="","",ResumenCotizacion!C6) ->  | J6: NIT: | K6: =IF(ResumenCotizacion!K6="","",ResumenCotizacion!K6) -> 
A8: Dirección de la Entidad: | C8: =IF(ResumenCotizacion!C8="","",ResumenCotizacion!C8) ->  | J8: Correo de contacto: | K8: =IF(ResumenCotizacion!K8="","",ResumenCotizacion!K8) -> 
A10: Municipio: | C10: =IF(ResumenCotizacion!C10="","",ResumenCotizacion!C10) ->  | J10: Teléfono de contacto: | K10: =IF(ResumenCotizacion!K10="","",ResumenCotizacion!K10) ->  | M10: =IF(ResumenCotizacion!M10="","",ResumenCotizacion!M10) -> 
A12: Fecha de inicio de la Orden de Compra: | C12: =IF(ResumenCotizacion!C12="","",ResumenCotizacion!C12) ->  | J12: Nombre funcionario Comprador: | L12: =IF(ResumenCotizacion!L12="","",ResumenCotizacion!L12) -> 
A14: Solicitud de Cotización
B18: Proveedor: | C18: UNIÓN TEMPORAL VIGILANCIA EFICIENTE 2017 | K18: =IF(SolCotizacion!K18="","",SolCotizacion!K18) -> 
A22: Item | B22: Nombre Producto | E22: Detalle | I22: Unidad de Medida | J22: Cantidad Estimada | K22: Número de parte | L22: Valor Unitario (Incluye gravámenes adicionales) | M22: Valor Unitario * Und Cantidad | N22: Descuento | O22: Total | P22: IVA | Q22: Cantidad de servicio | R22: Excento de IVA
A23: 1 | B23: Tipo 1: Sistema de punto de cámara PTZ sin Infrarrojo y sin poste. | E23: Cámara PTZ tipo domo exterior PTZ sin Infrarrojo y sin poste. | I23: Und | J23: 10 | K23: N/A | L23: =VLOOKUP($E23,Listado!$L:$P,MATCH($C$18,Listado!$L$2:$P$2,0),0) -> 10510135 | M23: =J23*L23 -> 105101350 | O23: =J23*L23-(L23*N23%*J23) -> 105101350 | P23: =IF(R23="NO",O23*0.19,0) -> 0 | Q23: 10 | R23: SI
A24: 1 | B24: Tipo 1: Sistema de punto de cámara PTZ sin Infrarrojo y sin poste. | E24: Ups | I24: Und | J24: 10 | L24: =VLOOKUP($E24,Listado!$L:$P,MATCH($C$18,Listado!$L$2:$P$2,0),0) -> 2873324 | M24: =J24*L24 -> 28733240 | O24: =J24*L24-(L24*N24%*J24) -> 28733240
A25: 1 | B25: Tipo 1: Sistema de punto de cámara PTZ sin Infrarrojo y sin poste. | E25: Sistema de almacenamiento | I25: Und | J25: 10 | L25: =VLOOKUP($E25,Listado!$L:$P,MATCH($C$18,Listado!$L$2:$P$2,0),0) -> 8721891 | M25: 87218910 | O25: 87218910
A26: 1 | B26: Tipo 1: Sistema de punto de cámara PTZ sin Infrarrojo y sin poste. | E26: Gabinetes de poste/fachada | I26: Und | J26: 10 | L26: =VLOOKUP($E26,Listado!$L:$P,MATCH($C$18,Listado!$L$2:$P$2,0),0) -> 2213193 | M26: 22131930 | O26: 22131930
A27: 1 | B27: Tipo 1: Sistema de punto de cámara PTZ sin Infrarrojo y sin poste. | E27: Corona antiescalatorias | I27: Und | J27: 10 | L27: =VLOOKUP($E27,Listado!$L:$P,MATCH($C$18,Listado!$L$2:$P$2,0),0) -> 228164 | M27: 2281640 | O27: 2281640
A28: 1 | B28: Tipo 1: Sistema de punto de cámara PTZ sin Infrarrojo y sin poste. | E28: Brazos de soporte para cámaras | I28: Und | J28: 10 | L28: =VLOOKUP($E28,Listado!$L:$P,MATCH($C$18,Listado!$L$2:$P$2,0),0) -> 465729 | M28: 4657290 | O28: 4657290
A29: 1 | B29: Tipo 1: Sistema de punto de cámara PTZ sin Infrarrojo y sin poste. | E29: Sistemas de puesta a tierra | I29: Und | J29: 10 | L29: =VLOOKUP($E29,Listado!$L:$P,MATCH($C$18,Listado!$L$2:$P$2,0),0) -> 2898857 | M29: 28988570 | O29: 28988570
A30: 1 | B30: Tipo 1: Sistema de punto de cámara PTZ sin Infrarrojo y sin poste. | E30: Instalación y puesta en funcionamiento | I30: Und | J30: 10 | L30: =VLOOKUP($E30,Listado!$L:$P,MATCH($C$18,Listado!$L$2:$P$2,0),0) -> 1704941.11 | M30: 17049411.1 | O30: 17049411.1
A31: 2 | B31: Tipo 2: Sistema de punto de cámara PTZ sin infrarrojo y con poste. | I31: Und | J31: 10 | K31: N/A | L31: 33197036 | M31: 331970360 | O31: =J31*L31-(L31*N31%*J31) -> 331970360 | P31: =IF(R31="NO",O31*0.19,0) -> 0 | Q31: 10 | R31: SI
A32: 3 | B32: Tipo 3: Sistema de punto de cámara fija y con poste. | I32: Und | J32: 10 | K32: N/A | L32: 35938329 | M32: 359383290 | O32: =J32*L32-(L32*N32%*J32) -> 359383290 | P32: =IF(R32="NO",O32*0.19,0) -> 0 | Q32: 10 | R32: SI
A33: 4 | B33: Opción 1: Equipo inalambrico 1. | I33: Und | J33: 10 | K33: N/A | L33: 41634284 | M33: 416342840 | O33: =J33*L33-(L33*N33%*J33) -> 416342840 | P33: =IF(R33="NO",O33*0.19,0) -> 0 | Q33: 10 | R33: SI
A34: 5 | B34: Opción 2: Equipo inalambrico 2. | I34: Und | J34: 10 | K34: N/A | L34: 18228206 | M34: 182282060 | O34: =J34*L34-(L34*N34%*J34) -> 182282060 | P34: =IF(R34="NO",O34*0.19,0) -> 0 | Q34: 10 | R34: SI
A36: Fin de solicitud | K36: Totales | L36: Totales
K37: Valor total de la cotización: | L37: Valor total de la cotización: | M37: =SUM(O23:O34) -> 1586140891

Sheet Version 1 24-11-2017 (hidden)
A1: Version | B1: Fecha | C1: Obseraviones
A2: V1 | B2: 2017-11-10 | C2: Creaciòn de Simulador
A3: V1 | B3: 2017-11-24 | C3: Correccion ajustes de usuario
A4: V1 | B4: 2017-11-28 | C4: Desglose de los productos

Sheet CSV (hidden)
A1: Tipo (servicio o artÃ­culo) | B1: Cantidad | C1: CÃ³digo de unidad de medida* | D1: PosiciÃ³n | E1: Precio base | F1: Divisa | G1: DescripciÃ³n | H1: MercancÃ­a
A2: item | B2: 1 | C2: Und | E2: "0" | F2: COP | G2: vvl01--Bienes y Servicios de Videovigilancia

Sheet Categoría 1 (hidden)
A1: Código matriz | B1: Excento de IVA | C1: Region | D1: Categoria | E1: Familia | F1: Nombre Producto | G1: Unidad de Medida | H1: Unidad de Servicio | I1: Tipo | J1: Precio | K1: Proveedor | L1: Número de parte | N1: Menor valor | O1: proveedor 1 | P1: proveedor 2 | Q1: proveedor 3 | R1: proveedor 4 | S1: proveedor 5
A2: 1 | B2: SI | C2: Región Todas | D2: Categoría 1 | E2: camara | F2: Tipo 1: Sistema de punto de cámara PTZ sin Infrarrojo y sin poste. | G2: Und | H2: Und | I2: Producto | J2: =SUM(Listado!M4:M11) -> 29616234.11 | K2: =Listado!H2 -> UNIÓN TEMPORAL VIGILANCIA EFICIENTE 2017 | L2: N/A | N2: =MIN(IF(O2=0,1000000000000,O2),IF(P2=0,1000000000000,P2),IF(Q2=0,1000000000000,Q2),IF(R2=0,1000000000000,R2),IF(S2=0,1000000000000,S2)) -> 20196158 | O2: =SUM(IF($M:$M=1,$J:$J,0)) -> 41735617.88 | P2: =SUM(IF($M:$M=2,$J:$J,0)) -> 45589399.49 | Q2: =SUM(IF($M:$M=3,$J:$J,0)) -> 20196158 | R2: =SUM(IF($M:$M=4,$J:$J,0)) -> 41750326.42 | S2: =SUM(IF($M:$M=5,$J:$J,0)) -> 0
A3: 1 | B3: SI | C3: Región Todas | D3: Categoría 1 | E3: camara | F3: Tipo 1: Sistema de punto de cámara PTZ sin Infrarrojo y sin poste. | G3: Und | H3: Und | I3: Producto | J3: =SUM(Listado!N4:N11) -> 42508212.7 | K3: =Listado!H3 -> UT UNITEC CCE 2017 | L3: N/A
A4: 2 | B4: SI | C4: Región Todas | D4: Categoría 1 | E4: camara | F4: Tipo 1: Sistema de punto de cámara PTZ sin Infrarrojo y sin poste. | G4: Und | H4: Und | I4: Producto | J4: =SUM(Listado!O4:O11) -> 20168320.86 | K4: =Listado!H4 -> U.T. BOGOTA ALCALDIAS SEGURIDAD CIUDADANA | L4: N/A
A5: 2 | B5: SI | C5: Región Todas | D5: Categoría 1 | E5: camara | F5: Tipo 1: Sistema de punto de cámara PTZ sin Infrarrojo y sin poste. | G5: Und | H5: Und | I5: Producto | J5: =SUM(Listado!P4:P11) -> 30176037.64 | K5: =Listado!H5 -> SEGURITECH PRIVADA S.A DE C.V | L5: N/A
A6: 3 | B6: SI | C6: Región Todas | D6: Categoría 1 | E6: camara | F6: Tipo 2: Sistema de punto de cámara PTZ sin infrarrojo y con poste. | G6: Und | H6: Und | I6: Producto | J6: =SUM(Listado!M14:M22) -> 33273995.73 | K6: =Listado!H2 -> UNIÓN TEMPORAL VIGILANCIA EFICIENTE 2017 | L6: N/A
A7: 3 | B7: SI | C7: Región Todas | D7: Categoría 1 | E7: camara | F7: Tipo 2: Sistema de punto de cámara PTZ sin infrarrojo y con poste. | G7: Und | H7: Und | I7: Producto | J7: =SUM(Listado!N14:N22) -> 45866770.13 | K7: =Listado!H3 -> UT UNITEC CCE 2017 | L7: N/A
A8: 4 | B8: SI | C8: Región Todas | D8: Categoría 1 | E8: camara | F8: Tipo 2: Sistema de punto de cámara PTZ sin infrarrojo y con poste. | G8: Und | H8: Und | I8: Producto | J8: =SUM(Listado!O14:O22) -> 21938320.86 | K8: =Listado!H4 -> U.T. BOGOTA ALCALDIAS SEGURIDAD CIUDADANA | L8: N/A
A9: 4 | B9: SI | C9: Región Todas | D9: Categoría 1 | E9: camara | F9: Tipo 2: Sistema de punto de cámara PTZ sin infrarrojo y con poste. | G9: Und | H9: Und | I9: Producto | J9: =SUM(Listado!P14:P22) -> 34261703.81 | K9: =Listado!H5 -> SEGURITECH PRIVADA S.A DE C.V | L9: N/A
A10: 5 | B10: SI | C10: Región Todas | D10: Categoría 1 | E10: camara | F10: Tipo 3: Sistema de punto de cámara fija y con poste. | G10: Und | H10: Und | I10: Producto | J10: =SUM(Listado!M25:M33) -> 36023598.55 | K10: =Listado!H2 -> UNIÓN TEMPORAL VIGILANCIA EFICIENTE 2017 | L10: N/A
A11: 5 | B11: SI | C11: Región Todas | D11: Categoría 1 | E11: camara | F11: Tipo 3: Sistema de punto de cámara fija y con poste. | G11: Und | H11: Und | I11: Producto | J11: =SUM(Listado!N25:N33) -> 48576638.13 | K11: =Listado!H3 -> UT UNITEC CCE 2017 | L11: N/A
A12: 6 | B12: SI | C12: Región Todas | D12: Categoría 1 | E12: camara | F12: Tipo 3: Sistema de punto de cámara fija y con poste. | G12: Und | H12: Und | I12: Producto | J12: =SUM(Listado!O25:O33) -> 24018161.61 | K12: =Listado!H4 -> U.T. BOGOTA ALCALDIAS SEGURIDAD CIUDADANA | L12: N/A
A13: 6 | B13: SI | C13: Región Todas | D13: Categoría 1 | E13: camara | F13: Tipo 3: Sistema de punto de cámara fija y con poste. | G13: Und | H13: Und | I13: Producto | J13: =SUM(Listado!P25:P33) -> 37029744.52 | K13: =Listado!H5 -> SEGURITECH PRIVADA S.A DE C.V | L13: N/A
A14: 7 | B14: SI | C14: Región Todas | D14: Categoría 1 | E14: camara | F14: Opción 1: Equipo inalambrico 1. | G14: Und | H14: Und | I14: Producto | J14: =SUM(Listado!M36:M37) -> 41735617.88 | K14: =Listado!H2 -> UNIÓN TEMPORAL VIGILANCIA EFICIENTE 2017 | L14: N/A | M14: 1
A15: 7 | B15: SI | C15: Región Todas | D15: Categoría 1 | E15: camara | F15: Opción 1: Equipo inalambrico 1. | G15: Und | H15: Und | I15: Producto | J15: =SUM(Listado!N36:N37) -> 45589399.49 | K15: =Listado!H3 -> UT UNITEC CCE 2017 | L15: N/A | M15: 2
A16: 8 | B16: SI | C16: Región Todas | D16: Categoría 1 | E16: camara | F16: Opción 1: Equipo inalambrico 1. | G16: Und | H16: Und | I16: Producto | J16: =SUM(Listado!O36:O37) -> 20196158 | K16: =Listado!H4 -> U.T. BOGOTA ALCALDIAS SEGURIDAD CIUDADANA | L16: N/A | M16: 3
A17: 8 | B17: SI | C17: Región Todas | D17: Categoría 1 | E17: camara | F17: Opción 1: Equipo inalambrico 1. | G17: Und | H17: Und | I17: Producto | J17: =SUM(Listado!P36:P37) -> 41750326.42 | K17: =Listado!H5 -> SEGURITECH PRIVADA S.A DE C.V | L17: N/A | M17: 4
A18: 9 | B18: SI | C18: Región Todas | D18: Categoría 1 | E18: camara | F18: Opción 2: Equipo inalambrico 2. | G18: Und | H18: Und | I18: Producto | J18: =SUM(Listado!M40:M41) -> 18268280.8 | K18: =Listado!H2 -> UNIÓN TEMPORAL VIGILANCIA EFICIENTE 2017 | L18: N/A
A19: 9 | B19: SI | C19: Región Todas | D19: Categoría 1 | E19: camara | F19: Opción 2: Equipo inalambrico 2. | G19: Und | H19: Und | I19: Producto | J19: =SUM(Listado!N40:N41) -> 13821470.91 | K19: =Listado!H3 -> UT UNITEC CCE 2017 | L19: N/A
A20: 10 | B20: SI | C20: Región Todas | D20: Categoría 1 | E20: camara | F20: Opción 2: Equipo inalambrico 2. | G20: Und | H20: Und | I20: Producto | J20: =SUM(Listado!O40:O41) -> 5091718 | K20: =Listado!H4 -> U.T. BOGOTA ALCALDIAS SEGURIDAD CIUDADANA | L20: N/A
A21: 10 | B21: SI | C21: Región Todas | D21: Categoría 1 | E21: camara | F21: Opción 2: Equipo inalambrico 2. | G21: Und | H21: Und | I21: Producto | J21: =SUM(Listado!P40:P41) -> 6438981.14 | K21: =Listado!H5 -> SEGURITECH PRIVADA S.A DE C.V | L21: N/A

Sheet Listado (hidden)
A1: Categoria | C1: Productos | H1: Categoría1Proveedor
A2: Categoría 1 | C2: Tipo 1: Sistema de punto de cámara PTZ sin Infrarrojo y sin poste. | H2: UNIÓN TEMPORAL VIGILANCIA EFICIENTE 2017 | K2: Ref. Artículo. | L2: Descripción | M2: =H2 -> UNIÓN TEMPORAL VIGILANCIA EFICIENTE 2017 | N2: =H3 -> UT UNITEC CCE 2017 | O2: =H4 -> U.T. BOGOTA ALCALDIAS SEGURIDAD CIUDADANA | P2: =H5 -> SEGURITECH PRIVADA S.A DE C.V
C3: Tipo 2: Sistema de punto de cámara PTZ sin infrarrojo y con poste. | H3: UT UNITEC CCE 2017 | K3: Tipo 1: Sistema de punto de cámara PTZ sin Infrarrojo y sin poste.
C4: Tipo 3: Sistema de punto de cámara fija y con poste. | H4: U.T. BOGOTA ALCALDIAS SEGURIDAD CIUDADANA | I4: =J4&L4 -> Tipo 1: Sistema de punto de cámara PTZ sin Infrarrojo y sin poste.Cámara PTZ tipo domo exterior PTZ sin Infrarrojo y sin poste. | J4: Tipo 1: Sistema de punto de cámara PTZ sin Infrarrojo y sin poste. | K4: 1 | L4: Cámara PTZ tipo domo exterior PTZ sin Infrarrojo y sin poste. | M4: 10510135 | N4: 9181802 | O4: 8331700 | P4: 16929988
C5: Opción 1: Equipo inalambrico 1. | H5: SEGURITECH PRIVADA S.A DE C.V | I5: =J5&L5 -> Tipo 1: Sistema de punto de cámara PTZ sin Infrarrojo y sin poste.Ups | J5: Tipo 1: Sistema de punto de cámara PTZ sin Infrarrojo y sin poste. | K5: 2 | L5: Ups | M5: 2873324 | N5: 2477818 | O5: 1950000 | P5: 1255081
C6: Opción 2: Equipo inalambrico 2. | I6: Tipo 1: Sistema de punto de cámara PTZ sin Infrarrojo y sin poste.Sistema de almacenamiento | J6: Tipo 1: Sistema de punto de cámara PTZ sin Infrarrojo y sin poste. | K6: 3 | L6: Sistema de almacenamiento | M6: 8721891 | N6: 13843032 | O6: 4341876.864 | P6: 4442508
I7: Tipo 1: Sistema de punto de cámara PTZ sin Infrarrojo y sin poste.Gabinetes de poste/fachada | J7: Tipo 1: Sistema de punto de cámara PTZ sin Infrarrojo y sin poste. | K7: 4 | L7: Gabinetes de poste/fachada | M7: 2213193 | N7: 2445331 | O7: 1570800 | P7: 1245335
I8: Tipo 1: Sistema de punto de cámara PTZ sin Infrarrojo y sin poste.Corona antiescalatorias | J8: Tipo 1: Sistema de punto de cámara PTZ sin Infrarrojo y sin poste. | K8: 5 | L8: Corona antiescalatorias | M8: 228164 | N8: 228361 | O8: 114240 | P8: 79135
I9: Tipo 1: Sistema de punto de cámara PTZ sin Infrarrojo y sin poste.Brazos de soporte para cámaras | J9: Tipo 1: Sistema de punto de cámara PTZ sin Infrarrojo y sin poste. | K9: 6 | L9: Brazos de soporte para cámaras | M9: 465729 | N9: 358904 | O9: 171360 | P9: 126616
I10: Tipo 1: Sistema de punto de cámara PTZ sin Infrarrojo y sin poste.Sistemas de puesta a tierra | J10: Tipo 1: Sistema de punto de cámara PTZ sin Infrarrojo y sin poste. | K10: 7 | L10: Sistemas de puesta a tierra | M10: 2898857 | N10: 2682974 | O10: 1440000 | P10: 1420307
I11: Tipo 1: Sistema de punto de cámara PTZ sin Infrarrojo y sin poste.Instalación y puesta en funcionamiento | J11: Tipo 1: Sistema de punto de cámara PTZ sin Infrarrojo y sin poste. | K11: 8 | L11: Instalación y puesta en funcionamiento | M11: 1704941.11 | N11: 11289990.7 | O11: 2248344 | P11: 4677067.64
M12: =SUM(M4:M11) -> 29616234.11 | N12: =SUM(N4:N11) -> 42508212.7 | O12: 20168320.86 | P12: 30176037.64
K13: Tipo 2: Sistema de punto de cámara PTZ sin infrarrojo y con poste.
I14: =J14&L14 -> Tipo 2: Sistema de punto de cámara PTZ sin infrarrojo y con poste.Cámara PTZ tipo domo exterior PTZ sin infrarrojo y con poste. | J14: Tipo 2: Sistema de punto de cámara PTZ sin infrarrojo y con poste. | K14: 1 | L14: Cámara PTZ tipo domo exterior PTZ sin infrarrojo y con poste. | M14: 10510135 | N14: 9181802 | O14: 8331700 | P14: 18603951
I15: Tipo 2: Sistema de punto de cámara PTZ sin infrarrojo y con poste.Ups | J15: Tipo 2: Sistema de punto de cámara PTZ sin infrarrojo y con poste. | K15: 2 | L15: Ups | M15: 2873324 | N15: 2477818 | O15: 1950000 | P15: 1255081
I16: Tipo 2: Sistema de punto de cámara PTZ sin infrarrojo y con poste.Sistema de almacenamiento | J16: Tipo 2: Sistema de punto de cámara PTZ sin infrarrojo y con poste. | K16: 3 | L16: Sistema de almacenamiento | M16: 8721891 | N16: 13843032 | O16: 4341876.864 | P16: 4442508
I17: Tipo 2: Sistema de punto de cámara PTZ sin infrarrojo y con poste.Postes y/o soportes para fachada e instalación | J17: Tipo 2: Sistema de punto de cámara PTZ sin infrarrojo y con poste. | K17: 4 | L17: Postes y/o soportes para fachada e instalación | M17: 3404087 | N17: 2167823 | O17: 1770000 | P17: 1778455
I18: Tipo 2: Sistema de punto de cámara PTZ sin infrarrojo y con poste.Gabinetes de poste/fachada | J18: Tipo 2: Sistema de punto de cámara PTZ sin infrarrojo y con poste. | K18: 5 | L18: Gabinetes de poste/fachada | M18: 2213193 | N18: 2445331 | O18: 1570800 | P18: 1245335
I19: Tipo 2: Sistema de punto de cámara PTZ sin infrarrojo y con poste.Corona antiescalatorias | J19: Tipo 2: Sistema de punto de cámara PTZ sin infrarrojo y con poste. | K19: 6 | L19: Corona antiescalatorias | M19: 228164 | N19: 228361 | O19: 114240 | P19: 79135
I20: Tipo 2: Sistema de punto de cámara PTZ sin infrarrojo y con poste.Brazos de soporte para cámaras | J20: Tipo 2: Sistema de punto de cámara PTZ sin infrarrojo y con poste. | K20: 7 | L20: Brazos de soporte para cámaras | M20: 465729 | N20: 358904 | O20: 171360 | P20: 126616
I21: Tipo 2: Sistema de punto de cámara PTZ sin infrarrojo y con poste.Sistemas de puesta a tierra | J21: Tipo 2: Sistema de punto de cámara PTZ sin infrarrojo y con poste. | K21: 8 | L21: Sistemas de puesta a tierra | M21: 2898857 | N21: 2682974 | O21: 1440000 | P21: 1420307
I22: Tipo 2: Sistema de punto de cámara PTZ sin infrarrojo y con poste.Instalación y puesta en funcionamiento | J22: Tipo 2: Sistema de punto de cámara PTZ sin infrarrojo y con poste. | K22: 9 | L22: Instalación y puesta en funcionamiento | M22: 1958615.73 | N22: 12480725.13 | O22: 2248344 | P22: 5310315.81
M23: =SUM(M14:M22) -> 33273995.73 | N23: =SUM(N14:N22) -> 45866770.13 | O23: 21938320.86 | P23: 34261703.81
K24: Tipo 3: Sistema de punto de cámara fija y con poste.
I25: =J25&L25 -> Tipo 3: Sistema de punto de cámara fija y con poste.Cámara Fija | J25: Tipo 3: Sistema de punto de cámara fija y con poste. | K25: 1 | L25: Cámara Fija | M25: 13048254 | N25: 11891670 | O25: 10411540.75 | P25: 20942965
I26: Tipo 3: Sistema de punto de cámara fija y con poste.Ups | J26: Tipo 3: Sistema de punto de cámara fija y con poste. | K26: 2 | L26: Ups | M26: 2873324 | N26: 2477818 | O26: 1950000 | P26: 1255081
I27: Tipo 3: Sistema de punto de cámara fija y con poste.Sistema de almacenamiento | J27: Tipo 3: Sistema de punto de cámara fija y con poste. | K27: 3 | L27: Sistema de almacenamiento | M27: 8721891 | N27: 13843032 | O27: 4341876.864 | P27: 4442508
I28: Tipo 3: Sistema de punto de cámara fija y con poste.Postes y/o soportes para fachada e instalación | J28: Tipo 3: Sistema de punto de cámara fija y con poste. | K28: 4 | L28: Postes y/o soportes para fachada e instalación | M28: 3404087 | N28: 2167823 | O28: 1770000 | P28: 1778455
I29: Tipo 3: Sistema de punto de cámara fija y con poste.Gabinetes de poste/fachada | J29: Tipo 3: Sistema de punto de cámara fija y con poste. | K29: 5 | L29: Gabinetes de poste/fachada | M29: 2213193 | N29: 2445331 | O29: 1570800 | P29: 1245335
I30: Tipo 3: Sistema de punto de cámara fija y con poste.Corona antiescalatorias | J30: Tipo 3: Sistema de punto de cámara fija y con poste. | K30: 6 | L30: Corona antiescalatorias | M30: 228164 | N30: 228361 | O30: 114240 | P30: 79135
I31: Tipo 3: Sistema de punto de cámara fija y con poste.Brazos de soporte para cámaras | J31: Tipo 3: Sistema de punto de cámara fija y con poste. | K31: 7 | L31: Brazos de soporte para cámaras | M31: 465729 | N31: 358904 | O31: 171360 | P31: 126616
I32: Tipo 3: Sistema de punto de cámara fija y con poste.Sistemas de puesta a tierra | J32: Tipo 3: Sistema de punto de cámara fija y con poste. | K32: 8 | L32: Sistemas de puesta a tierra | M32: 2898857 | N32: 2682974 | O32: 1440000 | P32: 1420307
I33: Tipo 3: Sistema de punto de cámara fija y con poste.Instalación y puesta en funcionamiento | J33: Tipo 3: Sistema de punto de cámara fija y con poste. | K33: 9 | L33: Instalación y puesta en funcionamiento | M33: 2170099.55 | N33: 12480725.13 | O33: 2248344 | P33: 5739342.52
M34: =SUM(M25:M33) -> 36023598.55 | N34: =SUM(N25:N33) -> 48576638.13 | O34: 24018161.61 | P34: 37029744.52
K35: Opción 1: Equipo inalambrico 1.
I36: =J36&L36 -> Opción 1: Equipo inalambrico 1.Equipo de red inalámbrica estación base. | J36: Opción 1: Equipo inalambrico 1. | K36: 1 | L36: Equipo de red inalámbrica estación base. | M36: 39156683 | N36: 43695967 | O36: 19134440 | P36: 35279328
I37: Opción 1: Equipo inalambrico 1.Instalación y puesta en funcionamiento | J37: Opción 1: Equipo inalambrico 1. | K37: 2 | L37: Instalación y puesta en funcionamiento | M37: 2578934.88 | N37: 1893432.49 | O37: 1061718 | P37: 6470998.42
M38: =SUM(M36:M37) -> 41735617.88 | N38: =SUM(N36:N37) -> 45589399.49 | O38: 20196158 | P38: 41750326.42
K39: Opción 2: Equipo inalambrico 2.
I40: =J40&L40 -> Opción 2: Equipo inalambrico 2.Equipo de red inalámbrica suscriptor o terminal ptp. | J40: Opción 2: Equipo inalambrico 2. | K40: 1 | L40: Equipo de red inalámbrica suscriptor o terminal ptp. | M40: 17248382 | N40: 12283537 | O40: 4030000 | P40: 5440986
I41: Opción 2: Equipo inalambrico 2.Instalación y puesta en funcionamiento | J41: Opción 2: Equipo inalambrico 2. | K41: 2 | L41: Instalación y puesta en funcionamiento | M41: 1019898.8 | N41: 1537933.91 | O41: 1061718 | P41: 997995.14
M42: =SUM(M40:M41) -> 18268280.8 | N42: =SUM(N40:N41) -> 13821470.91 | O42: 5091718 | P42: 6438981.14
M48: UNIÓN TEMPORAL VIGILANCIA EFICIENTE 2017 | N48: UT UNITEC CCE 2017 | O48: U.T. BOGOTA ALCALDIAS SEGURIDAD CIUDADANA | P48: SEGURITECH PRIVADA S.A DE C.V
